bitfinex/quotes_SOLUSD_20251218
["timestamp","ask_amount","ask_price","bid_price","bid_amount"]
[1766051150341,3.76669482,123.76,123.73,8.08201926]
[1766051150923,3.76669482,123.77,123.73,8.08201926]
[1766051151743,3.76669482,123.76,123.72,20.65908944]
[1766051151930,3.76669482,123.76,123.72,16.89239462]
[1766051152336,3.76669482,123.75,123.72,8.80994492]
[1766051152536,3.76669482,123.78,123.72,16.89265585]
[1766051152743,3.76669482,123.76,123.72,16.89265585]
[1766051153623,3.76669482,123.76,123.72,20.65935067]
[1766051153823,3.76669482,123.77,123.72,20.65935067]
[1766051154827,3.76669482,123.76,123.72,16.89265585]
[1766051155520,3.76669482,123.76,123.72,8.08271093]
[1766051155719,3.76669482,123.75,123.72,8.08271093]
[1766051156822,3.76669482,123.76,123.72,8.08271093]
[1766051157218,8.07911226,123.78,123.72,8.08271093]
[1766051157430,3.76669482,123.76,123.72,8.08271093]
[1766051158357,3.76669482,123.75,123.71,18.52085998]
[1766051158660,3.76669482,123.74,123.71,10.43767296]
[1766051159255,3.76669482,123.74,123.71,18.52106814]
[1766051159459,3.76669482,123.73,123.7,8.08373617]
[1766051160842,3.76669482,123.72,123.68,8.80994492]
[1766051161446,20.20980183,123.75,123.7,12.57663974]
[1766051161632,3.76669482,123.75,123.7,12.57663974]
[1766051162058,3.76669482,123.74,123.69,28.29651643]
[1766051162266,3.76669482,123.74,123.69,32.06321125]
[1766051162765,3.76669482,123.73,123.69,28.29651643]
[1766051164052,3.76669482,123.73,123.69,8.08469656]
[1766051164255,3.76669482,123.71,123.68,8.08517935]
[1766051164453,3.76669482,123.72,123.68,8.08517935]
[1766051165031,18.51746926,123.77,123.69,8.80994492]
[1766051165243,3.76669482,123.73,123.69,8.80994492]
[1766051165735,3.76669482,123.72,123.68,32.06532824]
[1766051165931,3.76669482,123.73,123.68,32.06532824]
[1766051166327,3.76669482,123.73,123.69,8.80994492]
[1766051166532,3.76669482,123.74,123.69,12.57663974]
[1766051166850,3.76669482,123.74,123.69,8.80994492]
[1766051167054,3.76669482,123.73,123.69,8.80994492]
[1766051167256,10.43767296,123.75,123.69,8.80994492]
[1766051167257,10.43767296,123.75,123.69,12.57663974]
[1766051167557,3.76669482,123.74,123.69,12.57663974]
[1766051168060,3.76669482,123.74,123.68,20.21345407]
[1766051168359,3.76669482,123.72,123.68,20.21345407]
[1766051168764,3.76669482,123.73,123.69,11.85131808]
[1766051169256,3.76669482,123.74,123.69,20.661263]
[1766051170848,3.76669482,123.74,123.69,16.89456818]
[1766051171043,3.76669482,123.73,123.69,16.89456818]
[1766051171363,10.43767296,123.75,123.68,14.20436778]
[1766051171585,23.0143127,123.76,123.72,3.76669482]
[1766051171936,3.76669482,123.77,123.72,3.76669482]
[1766051172248,22.28888258,123.79,123.7,8.80994492]
[1766051172565,3.76669482,123.78,123.73,3.76669482]
[1766051172750,3.76669482,123.78,123.73,11.84870415]
[1766051173065,18.51604976,123.79,123.73,11.84870415]
[1766051173464,3.76669482,123.78,123.73,11.84870415]
[1766051173663,10.43767296,123.79,123.73,11.84870415]
[1766051173870,3.76669482,123.77,123.73,8.08200933]
[1766051175046,3.76669482,123.77,123.73,3.76669482]
[1766051175256,3.76669482,123.77,123.71,20.20797615]
[1766051175257,3.76669482,123.77,123.72,3.76669482]
[1766051175568,3.76669482,123.77,123.72,12.57663974]
[1766051175804,3.76669482,123.77,123.73,3.76669482]
[1766051176745,3.76669482,123.77,123.72,12.57663974]
[1766051177158,8.07892521,123.78,123.72,20.65914764]
[1766051177347,3.76669482,123.77,123.72,20.65914764]
[1766051177551,3.76669482,123.77,123.72,16.89245282]
[1766051177769,3.76669482,123.77,123.72,20.65914764]
[1766051178450,3.76669482,123.76,123.72,16.89245282]
[1766051178862,10.43767296,123.77,123.72,20.65914764]
[1766051178863,14.20436778,123.77,123.72,20.65914764]
[1766051180262,3.76669482,123.76,123.72,16.89245282]
[1766051180472,3.76669482,123.76,123.72,20.65914764]
[1766051180889,14.20436778,123.77,123.72,20.65914764]
[1766051182280,3.76669482,123.78,123.72,37.09937166]
[1766051182467,3.76669482,123.78,123.73,3.76669482]
[1766051183749,18.51548514,123.8,123.74,8.80994492]
[1766051183949,3.76669482,123.79,123.74,12.57663974]
[1766051184253,3.76669482,123.78,123.73,3.76669482]
[1766051184653,3.76669482,123.78,123.73,11.8484816]
[1766051185179,3.76669482,123.79,123.74,12.57663974]
[1766051185481,14.20436778,123.8,123.75,3.76669482]
[1766051185687,3.76669482,123.79,123.74,12.57663974]
[1766051186368,14.20436778,123.8,123.75,3.76669482]
[1766051186679,14.20436778,123.8,123.75,11.84738408]
[1766051186878,10.43767296,123.8,123.76,3.76669482]
[1766051187090,3.76669482,123.81,123.76,3.76669482]
[1766051187464,14.20436778,123.82,123.77,3.76669482]
[1766051188359,3.76669482,123.82,123.77,3.76669482]
[1766051188567,3.76669482,123.83,123.78,3.76669482]
[1766051188794,3.76669482,123.83,123.77,11.84586993]
[1766051189967,3.76407065,123.82,123.77,11.84324576]
[1766051192393,10.43767296,123.84,123.77,8.07917511]
[1766051192394,3.76407065,123.81,123.77,8.07917511]
[1766051193310,3.76407065,123.82,123.77,11.84324576]
[1766051194188,3.76407065,123.81,123.77,8.07917511]
[1766051194598,3.76407065,123.8,123.76,20.65405324]
[1766051195769,3.76407065,123.81,123.76,20.65405324]
[1766051199898,3.76407065,123.8,123.76,20.65405324]
[1766051200210,3.76407065,123.8,123.76,16.88998259]
[1766051200821,3.76407065,123.8,123.75,18.51821086]
[1766051200992,3.76407065,123.79,123.75,18.51821086]
[1766051201177,3.76407065,123.78,123.75,10.43767296]
[1766051201502,8.07706509,123.81,123.75,8.08079858]
[1766051201681,3.76407065,123.79,123.75,8.08079858]
[1766051201882,3.76407065,123.78,123.75,8.08079858]
[1766051202099,3.76407065,123.78,123.74,8.08113138]
[1766051202299,3.76407065,123.76,123.72,8.08247725]
[1766051202505,3.76407065,123.76,123.72,11.8465479]
[1766051202707,3.76407065,123.77,123.72,11.8465479]
[1766051203184,3.76407065,123.77,123.73,8.08204387]
[1766051203585,3.76407065,123.77,123.72,16.89243191]
[1766051203786,3.76407065,123.77,123.72,20.65650256]
[1766051204679,3.76407065,123.77,123.73,3.76407065]
[1766051205116,3.76407065,123.78,123.73,3.76407065]
[1766051205298,3.76407065,123.78,123.72,37.09935075]
[1766051205299,3.76407065,123.79,123.74,3.76407065]
[1766051205505,3.76407065,123.79,123.75,3.76407065]
[1766051206012,3.76407065,123.79,123.74,11.84520844]
[1766051207518,2.4103845,123.79,123.74,10.49152229]
[1766051209636,2.4103845,123.8,123.75,11.22032942]
[1766051210001,2.4103845,123.8,123.76,2.4103845]
[1766051210296,2.4103845,123.81,123.76,2.4103845]
[1766051210497,2.4103845,123.81,123.76,10.48994007]
[1766051212629,18.51361647,123.83,123.76,10.48994007]
[1766051212831,2.4103845,123.81,123.76,8.07955557]
[1766051213042,2.4103845,123.81,123.76,30.69032791]
[1766051216033,5.43607486,123.82,123.76,30.69032791]
[1766051216240,2.4103845,123.81,123.76,30.69032791]
[1766051218636,2.4103845,123.81,123.76,10.48994007]
[1766051218832,2.4103845,123.8,123.75,19.30082216]
[1766051219026,2.4103845,123.8,123.76,8.08012101]
[1766051219614,2.4103845,123.8,123.75,16.89043823]
[1766051219837,2.4103845,123.79,123.75,16.89043823]
[1766051220438,13.51531205,123.81,123.75,16.89043823]
[1766051220619,2.4103845,123.79,123.75,16.89043823]
[1766051220819,2.4103845,123.77,123.73,8.80994492]
[1766051221016,2.4103845,123.78,123.74,8.08103699]
[1766051221616,8.07660192,123.82,123.75,19.30081116]
[1766051221837,2.4103845,123.8,123.75,19.30081116]
[1766051222153,2.4103845,123.79,123.75,16.89042666]
[1766051222435,2.4103845,123.79,123.74,2.4103845]
[1766051222436,2.4103845,123.78,123.74,8.80994492]
[1766051222643,2.4103845,123.77,123.73,16.8920592]
[1766051222851,2.4103845,123.76,123.73,16.8920592]
[1766051223214,38.70907844,123.8,123.72,18.52035609]
[1766051223215,2.4103845,123.75,123.72,18.52035609]
[1766051224436,2.4103845,123.76,123.72,18.52035609]
[1766051226351,18.51536489,123.8,123.72,38.72727493]
[1766051226645,18.51536489,123.8,123.72,41.13765943]
[1766051226646,2.4103845,123.77,123.72,41.13765943]
[1766051227156,5.44062036,123.79,123.73,11.22032942]
[1766051227359,2.4103845,123.78,123.73,11.22032942]
[1766051227837,2.4103845,123.78,123.73,8.80994492]
[1766051228037,2.4103845,123.78,123.73,11.22032942]
[1766051228460,2.4103845,123.78,123.74,8.08146112]
[1766051229052,2.4103845,123.77,123.74,8.08146112]
[1766051229255,2.4103845,123.77,123.73,16.89176397]
[1766051230529,2.4103845,123.76,123.73,16.89176397]
[1766051231855,2.4103845,123.77,123.73,16.89176397]
[1766051232665,2.4103845,123.76,123.72,18.52015015]
[1766051235260,2.4103845,123.76,123.71,11.22032942]
[1766051235458,2.4103845,123.74,123.7,18.52155502]
[1766051236463,8.07898518,123.78,123.71,2.4103845]
[1766051236651,2.4103845,123.75,123.71,8.08316171]
[1766051238054,8.07959902,123.77,123.69,29.02086334]
[1766051238055,2.4103845,123.73,123.69,16.89427622]
[1766051238555,2.4103845,123.73,123.69,8.80994492]
[1766051238865,2.4103845,123.73,123.68,33.06105491]
[1766051239064,2.4103845,123.73,123.69,8.0844172]
[1766051239865,2.4103845,123.72,123.68,18.52295342]
[1766051242143,2.4103845,123.73,123.68,38.73640749]
[1766051242433,2.4103845,123.73,123.68,41.14679199]
[1766051242858,2.4103845,123.72,123.68,41.14679199]
[1766051243861,2.4103845,123.72,123.68,38.73640749]
[1766051244047,2.4103845,123.72,123.68,41.14679199]
[1766051244464,2.4103845,123.72,123.68,8.08528046]
[1766051244755,2.4103845,123.71,123.68,8.08528046]
[1766051245653,2.4103845,123.72,123.68,8.08528046]
[1766051247862,2.4103845,123.73,123.68,30.70911903]
[1766051248368,2.4103845,123.73,123.69,2.4103845]
[1766051248967,2.4103845,123.74,123.69,2.4103845]
[1766051249465,2.4103845,123.74,123.69,8.80994492]
[1766051249647,2.4103845,123.74,123.69,11.22032942]
[1766051249849,2.4103845,123.75,123.7,2.4103845]
[1766051250263,10.43767296,123.76,123.71,2.4103845]
[1766051250472,2.4103845,123.75,123.71,10.49343231]
[1766051250650,2.4103845,123.75,123.71,8.08304781]
[1766051252573,10.43767296,123.76,123.71,10.49343231]
[1766051252774,2.4103845,123.75,123.71,8.08304781]
[1766051253148,2.4103845,123.73,123.69,16.89434288]
[1766051253348,18.5178673,123.76,123.69,8.08443774]
[1766051253675,18.5178673,123.76,123.67,18.52307999]
[1766051253676,2.4103845,123.71,123.67,18.52307999]
[1766051253845,2.4103845,123.71,123.67,8.08540703]
[1766051254275,2.4103845,123.71,123.68,8.08519451]
[1766051256060,2.4103845,123.71,123.67,16.89580702]
[1766051256258,2.4103845,123.69,123.65,8.80994492]
[1766051256558,2.4103845,123.69,123.65,16.89695493]
[1766051257261,2.4103845,123.69,123.66,8.08662273]
[1766051257576,2.41435199,123.69,123.66,8.08662273]
[1766051258385,2.41435199,123.69,123.65,16.89699311]
[1766051261374,10.43767296,123.71,123.65,37.11535137]
[1766051261564,2.41435199,123.71,123.66,11.22429691]
[1766051262471,18.51966457,123.74,123.67,8.08603541]
[1766051262673,2.41435199,123.72,123.67,10.5003874]
[1766051263371,2.41435199,123.72,123.67,30.71547594]
[1766051263574,2.41435199,123.73,123.68,2.41435199]
[1766051263955,2.41435199,123.73,123.67,28.30112395]
[1766051264169,2.41435199,123.72,123.67,30.71547594]
[1766051265578,2.41435199,123.72,123.67,28.30112395]
[1766051265781,10.43767296,123.71,123.62,0.2]
[1766051265980,10.43767296,123.71,123.62,29.23191079]
[1766051266165,10.43767296,123.71,123.65,2.41435199]
[1766051266371,10.43767296,123.71,123.66,2.41435199]
[1766051266881,12.85202495,123.71,123.66,10.50095026]
[1766051267081,12.85202495,123.71,123.66,2.41435199]
[1766051267384,2.41435199,123.7,123.65,10.50148066]
[1766051267884,12.85202495,123.71,123.66,10.5008115]
[1766051268084,12.85202495,123.71,123.66,8.08645951]
[1766051268271,12.85202495,123.71,123.66,10.5008115]
[1766051269087,12.85202495,123.71,123.66,8.08645951]
[1766051269498,14.20880173,123.71,123.66,11.85758828]
[1766051270775,3.77112877,123.72,123.67,12.58107369]
[1766051270978,14.20880173,123.72,123.67,20.66669601]
[1766051271298,14.20880173,123.72,123.67,16.89556724]
[1766051271473,14.20880173,123.72,123.67,20.66669601]
[1766051271869,3.77112877,123.71,123.67,16.89556724]
[1766051272983,3.77112877,123.7,123.66,8.08663916]
[1766051273585,3.77112877,123.71,123.66,11.85776793]
[1766051273800,3.77112877,123.71,123.67,16.89595548]
[1766051273975,14.20880173,123.72,123.67,20.66708425]
[1766051274176,3.77112877,123.73,123.68,3.77112877]
[1766051274395,18.51925273,123.74,123.68,3.77112877]
[1766051274596,3.77112877,123.73,123.68,3.77112877]
[1766051275993,3.77112877,123.73,123.68,11.85636555]
[1766051279084,3.77112877,123.76,123.71,3.77112877]
[1766051279680,30.65389125,123.77,123.7,8.80994492]
[1766051279681,3.77112877,123.77,123.72,3.77112877]
[1766051279869,10.43767296,123.78,123.73,3.77112877]
[1766051280067,3.77112877,123.78,123.73,3.77112877]
[1766051280486,5.43895314,123.78,123.73,3.77112877]
[1766051280686,3.77112877,123.78,123.73,11.85307302]
[1766051281192,3.77112877,123.8,123.75,3.77112877]
[1766051281391,14.20880173,123.8,123.75,3.77112877]
[1766051281610,3.77112877,123.79,123.74,8.80994492]
[1766051281772,10.43767296,123.8,123.73,11.85307302]
[1766051281984,8.07651346,123.82,123.73,8.08194425]
[1766051281985,3.77112877,123.78,123.73,8.08194425]
[1766051282381,3.77112877,123.78,123.73,11.85307302]
[1766051282585,10.43767296,123.79,123.74,12.58107369]
[1766051282586,3.77112877,123.79,123.74,12.58107369]
[1766051282779,3.77112877,123.79,123.73,8.08194425]
[1766051282780,3.77112877,123.8,123.75,12.58107369]
[1766051282978,3.77112877,123.79,123.75,8.80994492]
[1766051285007,10.43767296,123.8,123.75,20.66126319]
[1766051285306,8.07673796,123.82,123.75,20.66126319]
[1766051285606,3.77112877,123.81,123.76,3.77112877]
[1766051286401,3.77112877,123.81,123.76,11.85064751]
[1766051290105,3.77112877,123.79,123.75,12.58107369]
[1766051290296,3.77112877,123.79,123.75,8.80994492]
[1766051291399,8.07690246,123.81,123.75,8.80994492]
[1766051291711,3.77112877,123.79,123.75,8.80994492]
[1766051292210,8.07690246,123.81,123.75,8.80994492]
[1766051292606,3.77112877,123.78,123.74,8.0811239]
[1766051292811,3.77112877,123.78,123.73,11.85314789]
[1766051293187,28.26913248,123.81,123.74,8.08134463]
[1766051293507,28.26913248,123.81,123.74,11.8524734]
[1766051293697,3.77112877,123.79,123.75,8.08071501]
[1766051293899,3.77112877,123.79,123.74,11.8523003]
[1766051294603,8.07809771,123.8,123.74,11.8523003]
[1766051294795,3.77112877,123.79,123.74,11.8523003]
[1766051296508,8.07689201,123.81,123.74,11.8523003]
[1766051296693,3.77112877,123.79,123.74,11.8523003]
[1766051297012,3.77112877,123.79,123.74,3.77112877]
[1766051297912,3.77112877,123.79,123.74,11.85252791]
[1766051298114,8.07689201,123.81,123.74,11.85252791]
[1766051298416,3.77112877,123.79,123.74,11.85252791]
[1766051298593,3.77112877,123.79,123.75,3.77112877]
[1766051299316,3.77112877,123.79,123.74,11.85252791]
[1766051300096,3.77112877,123.79,123.75,3.77112877]
[1766051300295,18.51422468,123.82,123.75,3.77112877]
[1766051300296,3.77112877,123.8,123.76,8.80994492]
[1766051301690,3.77112877,123.8,123.76,16.88972032]
[1766051302416,3.77112877,123.8,123.75,8.08048667]
[1766051302716,3.77112877,123.8,123.75,11.85161544]
[1766051302919,18.51396822,123.82,123.76,8.07976952]
[1766051303102,3.77112877,123.8,123.76,8.07976952]
[1766051303305,3.77112877,123.8,123.76,16.88971444]
[1766051304015,3.77112877,123.81,123.76,20.66084321]
[1766051304213,3.77112877,123.8,123.76,16.88971444]
[1766051304414,3.77112877,123.8,123.76,20.66084321]
[1766051304898,3.77112877,123.81,123.76,20.66084321]
[1766051306423,3.77112877,123.81,123.76,16.88971444]
[1766051307802,3.77112877,123.8,123.76,16.88971444]
[1766051308424,10.43767296,123.83,123.76,40.86123105]
[1766051308616,3.77112877,123.81,123.76,40.86123105]
[1766051309020,10.43767296,123.83,123.76,40.86123105]
[1766051309207,18.51357329,123.83,123.76,40.86123105]
[1766051309521,3.77112877,123.81,123.76,20.66084321]
[1766051310506,3.77112877,123.8,123.76,16.88971444]
[1766051314122,3.77112877,123.81,123.76,16.88971444]
[1766051315936,10.43767296,123.83,123.77,12.58107369]
[1766051316127,3.77112877,123.82,123.77,12.58107369]
[1766051317637,3.77112877,123.82,123.77,16.88899852]
[1766051318332,3.77112877,123.8,123.76,8.07977984]
[1766051318540,3.77112877,123.81,123.77,8.07945417]
[1766051319423,18.51328424,123.83,123.76,8.08015513]
[1766051319629,3.77112877,123.81,123.76,8.08015513]
[1766051321819,8.07632617,123.82,123.76,8.08015513]
[1766051322020,3.77112877,123.8,123.76,8.08015513]
[1766051322220,8.07632617,123.82,123.75,16.89048164]
[1766051322221,3.77112877,123.79,123.75,16.89048164]
[1766051322441,8.07632617,123.82,123.75,16.89048164]
[1766051322648,3.77112877,123.79,123.75,16.89048164]
[1766051323249,8.07632617,123.82,123.75,16.89048164]
[1766051323441,3.77112877,123.79,123.75,16.89048164]
[1766051323643,3.77112877,123.8,123.75,16.89048164]
[1766051324525,3.76568062,123.8,123.75,16.89048164]
[1766051325966,3.76568062,123.79,123.75,16.89048164]
[1766051326144,3.76568062,123.78,123.72,3.76568062]
[1766051326445,3.76568062,123.77,123.73,16.89173363]
[1766051326637,3.76568062,123.76,123.71,8.08309538]
[1766051326842,5.45001694,123.78,123.71,8.08309538]
[1766051326843,3.76568062,123.75,123.71,16.8930403]
[1766051327041,3.76568062,123.74,123.7,8.0838477]
[1766051327229,3.76568062,123.74,123.7,18.52152066]
[1766051327545,3.76568062,123.74,123.7,8.0838477]
[1766051327723,3.76568062,123.74,123.7,18.52152066]
[1766051328653,3.76568062,123.75,123.7,18.52152066]
[1766051329326,3.76568062,123.74,123.7,18.52152066]
[1766051329840,8.07978177,123.77,123.7,18.52152066]
[1766051330033,3.76568062,123.74,123.7,18.52152066]
[1766051331550,2.41219418,123.74,123.7,18.52152066]
[1766051332550,13.51926826,123.77,123.7,18.52152066]
[1766051332846,2.41219418,123.74,123.7,18.52152066]
[1766051333856,2.41219418,123.75,123.7,18.52152066]
[1766051335739,2.41219418,123.75,123.7,41.14390077]
[1766051335956,2.41219418,123.77,123.71,11.2221391]
[1766051336752,2.41219418,123.76,123.71,11.2221391]
[1766051337535,2.41219418,123.76,123.71,8.80994492]
[1766051337735,2.41219418,123.76,123.72,8.08276753]
[1766051339529,10.43767296,123.78,123.72,8.08276753]
[1766051339730,2.41219418,123.76,123.72,8.08276753]
[1766051340442,10.43767296,123.78,123.72,8.08276753]
[1766051340646,10.43767296,123.78,123.73,8.80994492]
[1766051340975,2.41219418,123.78,123.73,11.2221391]
[1766051341945,2.41219418,123.78,123.74,8.08146112]
[1766051342551,18.51541491,123.8,123.74,8.08146112]
[1766051342859,2.41219418,123.78,123.74,8.08146112]
[1766051343754,2.41219418,123.79,123.74,8.08146112]
[1766051343954,2.41219418,123.79,123.74,10.4936553]
[1766051344266,2.41219418,123.79,123.74,8.08146112]
[1766051344855,2.41219418,123.79,123.74,10.4936553]
[1766051346264,2.41219418,123.79,123.74,8.08146112]
[1766051347556,18.515251,123.8,123.74,8.08146112]
[1766051347757,2.41219418,123.79,123.74,8.08146112]
[1766051349055,18.515251,123.8,123.74,8.08146112]
[1766051349056,2.41219418,123.78,123.74,8.08146112]
[1766051353847,2.41219418,123.79,123.74,10.4936553]
[1766051354848,2.41219418,123.79,123.74,8.08146112]
[1766051355049,2.41219418,123.79,123.74,10.4936553]
[1766051356865,8.07558749,123.83,123.75,11.2221391]
[1766051357064,2.41219418,123.82,123.77,11.2221391]
[1766051357259,10.43767296,123.82,123.77,11.2221391]
[1766051357751,2.41219418,123.83,123.78,2.41219418]
[1766051358472,2.41219418,123.84,123.78,2.41219418]
[1766051358760,2.41219418,123.84,123.78,10.49044838]
[1766051359147,2.41219418,123.84,123.79,2.41219418]
[1766051359564,12.84986714,123.84,123.79,2.41219418]
[1766051360573,8.07387887,123.86,123.79,8.80994492]
[1766051360749,2.41219418,123.85,123.8,8.07754442]
[1766051361147,2.41219418,123.85,123.8,10.4897386]
[1766051361346,2.41219418,123.85,123.8,8.07754442]
[1766051366249,12.84986714,123.85,123.8,10.4897386]
[1766051366569,10.43767296,123.85,123.8,10.4897386]
[1766051366971,20.18129533,123.9,123.81,11.2221391]
[1766051367159,8.80994492,123.92,123.83,2.41219418]
[1766051367355,5.41580376,123.91,123.83,2.41219418]
[1766051367560,2.41219418,123.89,123.83,2.41219418]
[1766051367767,2.41219418,123.89,123.84,2.41219418]
[1766051368266,12.84986714,123.89,123.84,2.41219418]
[1766051368479,8.0697224,123.92,123.85,11.2221391]
[1766051368671,8.0697224,123.92,123.81,8.80994492]
[1766051368672,2.41219418,123.88,123.83,12.84986714]
[1766051368973,2.41219418,123.88,123.83,20.92491146]
[1766051370852,2.41219418,123.89,123.83,20.92491146]
[1766051371348,18.50866235,123.91,123.83,41.1138802]
[1766051371567,2.41219418,123.89,123.83,41.1138802]
[1766051371759,2.41219418,123.87,123.82,2.41219418]
[1766051371964,38.68459649,123.91,123.83,10.48751842]
[1766051372169,2.41219418,123.88,123.83,10.48751842]
[1766051374882,2.41219418,123.87,123.83,8.07532424]
[1766051375175,2.41219418,123.88,123.83,10.48751842]
[1766051377079,2.41219418,123.89,123.84,11.2221391]
[1766051377278,20.274306,123.93,123.85,2.41219418]
[1766051377466,2.41219418,123.91,123.86,2.41219418]
[1766051377660,2.41219418,123.91,123.87,8.07297973]
[1766051379270,10.43767296,123.91,123.87,8.07297973]
[1766051379477,12.84986714,123.91,123.87,8.07297973]
[1766051380277,2.41219418,123.92,123.87,10.48517391]
[1766051380478,10.53767296,123.93,123.87,8.07297973]
[1766051380676,2.41219418,123.92,123.87,10.48517391]
[1766051381184,2.41219418,123.92,123.87,8.07297973]
[1766051381554,2.41219418,123.9,123.84,19.24761788]
[1766051381861,2.41219418,123.9,123.85,8.07410936]
[1766051382074,2.41219418,123.89,123.85,8.07410936]
[1766051382559,8.0704446,123.91,123.85,8.07410936]
[1766051382762,2.41219418,123.89,123.85,8.07410936]
[1766051382977,2.41219418,123.9,123.85,8.07410936]
[1766051384866,2.41219418,123.9,123.85,10.48630354]
[1766051385661,8.06999882,123.92,123.85,10.48630354]
[1766051385861,2.41219418,123.91,123.85,30.67201205]
[1766051386271,2.41219418,123.91,123.87,8.07297973]
[1766051386967,2.41219418,123.92,123.87,8.07297973]
[1766051387666,2.41219418,123.91,123.87,8.07297973]
[1766051393879,2.40558058,123.91,123.87,8.07297973]
[1766051394197,3.75871988,123.91,123.87,8.07297973]
[1766051395493,18.60691764,123.93,123.87,8.07297973]
[1766051395676,3.75871988,123.91,123.87,8.07297973]
[1766051396898,3.75871988,123.9,123.87,8.07297973]
[1766051397379,18.60691764,123.93,123.87,8.07297973]
[1766051397695,3.75871988,123.9,123.87,8.07297973]
[1766051398006,18.60691764,123.93,123.87,8.07297973]
[1766051398494,3.75871988,123.9,123.87,8.07297973]
[1766051398673,3.75871988,123.91,123.87,8.07297973]
[1766051398997,10.53767296,123.93,123.87,8.07297973]
[1766051399169,3.75871988,123.91,123.87,8.07297973]
[1766051400594,3.75871988,123.92,123.87,8.07297973]
[1766051401099,3.75871988,123.91,123.87,8.07297973]
[1766051401287,3.75871988,123.9,123.86,8.07332308]
[1766051401772,3.75871988,123.88,123.84,18.51227513]
[1766051402800,3.75871988,123.89,123.84,42.45833351]
[1766051403407,10.53767296,123.93,123.85,8.80994492]
[1766051403704,3.75871988,123.92,123.88,8.80994492]
[1766051403999,14.29639284,123.93,123.88,3.75871988]
[1766051404202,10.53767296,123.93,123.88,3.75871988]
[1766051404378,0.1,123.93,123.89,3.75871988]
[1766051405177,0.1,123.93,123.88,8.80994492]
[1766051405376,0.1,123.93,123.9,3.75871988]
[1766051405584,0.1,123.93,123.89,3.75871988]
[1766051406282,0.1,123.93,123.9,8.80994492]
[1766051408498,0.1,123.93,123.91,8.07037365]
[1766051408790,0.1,123.93,123.9,16.8808107]
[1766051409990,3.85871988,123.93,123.9,16.8808107]
[1766051411710,3.85871988,123.93,123.87,30.61926388]
[1766051411892,3.85871988,123.93,123.88,16.88194694]
[1766051412602,3.75871988,123.92,123.88,16.88194694]
[1766051413531,3.75871988,123.89,123.85,20.18473445]
[1766051413694,3.75871988,123.9,123.86,16.88321468]
[1766051414927,0.1,123.93,123.86,40.82601335]
[1766051415138,3.75871988,123.91,123.86,40.82601335]
[1766051415420,3.75871988,123.91,123.86,37.06729347]
[1766051416108,3.75871988,123.9,123.86,16.88321468]
[1766051416299,3.75871988,123.89,123.85,16.88379898]
[1766051418025,3.75871988,123.88,123.84,18.51238681]
[1766051418797,8.07004037,123.92,123.85,8.80994492]
[1766051419100,3.75871988,123.9,123.85,8.80994492]
[1766051419308,3.75871988,123.91,123.85,8.80994492]
[1766051419516,3.75871988,123.91,123.85,12.5686648]
[1766051420016,3.75871988,123.91,123.86,8.07363151]
[1766051421814,3.75871988,123.91,123.86,28.2577103]
[1766051422020,3.75871988,123.91,123.87,8.80994492]
[1766051423609,3.75871988,123.91,123.87,16.88254446]
[1766051423809,3.75871988,123.91,123.86,8.07330737]
[1766051424209,3.75871988,123.91,123.87,8.07295014]
[1766051425800,3.75871988,123.9,123.87,8.07295014]
[1766051430401,3.75871988,123.9,123.86,16.88333543]
[1766051431322,8.06975477,123.92,123.86,16.88333543]
[1766051431509,3.75871988,123.9,123.86,16.88333543]
[1766051431705,3.75871988,123.88,123.85,8.07403074]
[1766051432936,3.75871988,123.86,123.83,8.07528447]
[1766051435629,3.75871988,123.87,123.83,8.07528447]
[1766051436229,10.43767296,123.89,123.83,8.07528447]
[1766051436633,3.75871988,123.87,123.83,8.07528447]
[1766051438731,18.50953415,123.89,123.83,8.07528447]
[1766051439042,3.75871988,123.86,123.82,8.07589753]
[1766051439216,3.75871988,123.86,123.82,16.88584245]
[1766051441750,3.75871988,123.85,123.81,8.07663731]
[1766051443136,3.75871988,123.85,123.82,8.07622736]
[1766051444131,3.75871988,123.85,123.81,16.8865227]
[1766051446139,3.75871988,123.84,123.8,16.88733318]
[1766051446544,5.42486817,123.86,123.79,18.51574989]
[1766051446744,3.75871988,123.82,123.79,18.51574989]
[1766051448028,3.75871988,123.84,123.8,8.80994492]
[1766051449045,3.75871988,123.84,123.81,8.07689201]
[1766051449432,18.51084485,123.87,123.81,8.07689201]
[1766051449637,3.75871988,123.84,123.81,8.07689201]
[1766051450338,3.75871988,123.86,123.81,16.88683693]
[1766051450541,3.75871988,123.85,123.81,8.07689201]
[1766051450727,3.75871988,123.84,123.81,8.07689201]
[1766051451955,3.75871988,123.85,123.81,8.80994492]
[1766051452554,3.75871988,123.84,123.8,8.07754442]
[1766051452853,3.75871988,123.83,123.8,8.07754442]
[1766051453048,3.75871988,123.84,123.8,8.07754442]
[1766051455354,2.40833681,123.84,123.8,8.07754442]
[1766051456550,2.40833681,123.83,123.8,8.07754442]
[1766051457643,2.40833681,123.83,123.79,16.88801564]
[1766051458136,2.40833681,123.84,123.79,16.88801564]
[1766051460455,2.40833681,123.85,123.8,8.80994492]
[1766051460630,2.4079586,123.85,123.81,8.07689201]
[1766051461741,2.4079586,123.84,123.8,16.88714679]
[1766051462558,10.43767296,123.86,123.81,2.4079586]